Workbook

Sheet Default (hidden)
A1: Generation and Cost Summary | D1: GPC Capacity Expansion Plan | H1: NREL Projected Costs | J1: Year | K1: 2043
A2: Non-dispatchable* | B2: Capacity (MW) | C2: Generation (GWh/yr) | D2: Capacity Factor (%) | E2: % Total Load | F2: Capital Cost ($/kw) | G2: Fixed O&M ($/MWh) | H2: Var O&M ($/MWh) | I2: Fuel Cost ($/MWh) | J2: Capital Recovery ($/MWh) | K2: In-State Generation Cost ($/MWh)
A3: Existing Nuclear | B3: 2978 | C3: 25060.94208 | D3: 0.9606575342 | E3: 0.2460340099 | F3: 141 | G3: 3.700376454 | H3: 1.22 | I3: 4.09 | J3: 1.156100274
A4: New Nuclear | B4: 930.1 | C4: 7514.041283 | D4: 0.9222312329 | E4: 0.0737685639 | F4: 5663 | G4: 21.66177878 | H4: 0.97 | I4: 3.4 | J4: 49.06826129 | K4: 75.10004007
A5: Hydro | B5: 1985 | C5: 3180.60458 | D5: 0.1829132063 | E5: 0.03122535841 | G5: 27.32288715 | H5: 1.48 | K5: 28.80288715
A6: Biomass | B6: 1010 | C6: 5871.042443 | D6: 0.6635745787 | E6: 0.05763854007 | G6: 22.64269102 | H6: 5.06 | I6: 0 | J6: 0 | K6: 27.70269102
A7: Rooftop Solar | B7: 1500.1 | C7: 2288.32646 | D7: 0.1741380453 | E7: 0.02246548167 | F7: 1373 | G7: 11.1442578 | H7: 0 | I7: 0 | J7: 49.50344869 | K7: 60.64770649
A8: Utility Solar | B8: 15211 | C8: 31479.50427 | D8: 0.2362468421 | E8: 0.309047786 | F8: 754 | G8: 6.764846047 | H8: 0 | I8: 0 | J8: 23.6817932 | K8: 30.44663924
A9: Land-based Wind | B9: 3400.1 | C9: 1155.713055 | D9: 0.03880200997 | E9: 0.01134613042 | F9: 1188 | G9: 76.49182432 | H9: 0 | I9: 0 | J9: 237.6659822 | K9: 314.1578065
A10: Offshore Wind | B10: 0.1 | C10: 0.4166099252 | D10: 0 | E10: 4.090038201e-06 | F10: 4800 | G10: 17.76241888 | H10: 0 | I10: 0 | J10: 76.04235541 | K10: 93.80477429
A11: Total | B11: 27014.4 | C11: 76550.59078 | D11: 0.3234812513 | E11: 0.7515299603 | G11: 10.47944388 | H11: 0.9441826403 | I11: 1.672710715 | J11: 20.00181066 | K11: 33.0981479
D12: Capacity Factor (%)
A13: Dispatchable | B13: Capacity (MW) | C13: Generation (GWh/yr) | E13: % Total Load | F13: Capital Cost ($/kw) | G13: Fixed O&M ($/MWh) | H13: Var O&M ($/MWh) | I13: Fuel Cost ($/MWh) | J13: Capital Recovery ($/MWh) | K13: In-State Generation Cost ($/MWh)
A14: Battery Discharge | B14: 7920.1 | C14: 7082.920315 | D14: 0.1020886791 | E14: 0.06953606458 | F14: 1140 | G14: 27.95492413 | H14: 0 | I14: 0 | J14: 98.15532959 | K14: 126.1102537
A15: Flex Nuclear | B15: 0.001 | C15: 0 | D15: 0 | E15: 0 | F15: 5480 | G15: 0 | H15: 0 | I15: 2.6 | J15: 0 | K15: 2.6
A16: Existing Gas CC | B16: 5470 | C16: 10202.90782 | D16: 0.2129278802 | E16: 0.1001663192 | F16: 0 | G16: 7.828234206 | H16: 2.6416 | I16: 35 | J16: 0 | K16: 45.46983421
A17: New Gas CC | B17: 8040 | C17: 14996.59577 | D17: 0.2129278802 | E17: 0.1472280085 | F17: 1485 | G17: 10.72243344 | H17: 2 | I17: 31 | J17: 55.7298478 | K17: 99.45228124
A18: Hydrogen Turbine | B18: 1e-05 | C18: 0 | D18: 0 | E18: 0 | F18: 1257 | G18: 0 | H18: 0 | I18: 33 | J18: 0 | K18: 33
A19: Coal | B19: 0 | C19: 0 | D19: 0 | E19: 0 | F19: 0 | G19: 0 | H19: 0 | I19: 0 | J19: 0 | K19: 0
A20: Steam Plants | B20: 648 | C20: 68.40651962 | D20: 0.01205086949 | E20: 0.0006715761231 | G20: 10.72243344 | H20: 2.6416 | I20: 35 | J20: 0 | K20: 48.36403344
A21: Existing Gas CT | B21: 3084 | C21: 22.77597948 | D21: 0.0008430602002 | E21: 0.0002236015526 | F21: 0 | G21: 2285.541785 | H21: 4.71 | I21: 54 | J21: 0 | K21: 2344.251785
A22: New Gas CT | B22: 2490 | C22: 18.38916631 | D22: 0.0008430602002 | E22: 0.0001805343275 | F22: 979 | G22: 988.4624291 | H22: 4.71 | I22: 49 | J22: 9279.360311 | K22: 10321.53274
A23: Total | B23: 27652.10101 | C23: 25309.07526 | D23: 0.1044826157 | E23: 0.2484700397 | G23: 15.73349157 | H23: 1.769566287 | I23: 25.51622487 | J23: 52.53223977 | K23: 122.292279
A25: Total In-State Generation | B25: Capacity (MW) | C25: Generation (GWh/yr) | D25: Capacity Factor (%) | E25: % Total Load | G25: Fixed O&M ($/MWh) | H25: Var O&M ($/MWh) | I25: Fuel Cost ($/MWh) | J25: Capital Recovery ($/MWh) | K25: In-State Generation Cost ($/MWh)
A26: Total | B26: 54666.50101 | C26: 101859.666 | D26: 0.2127045913 | E26: 1 | G26: 11.78491732 | H26: 1.149265748 | I26: 7.597109622 | J26: 28.08464767 | K26: 52.87264788
A28: Regional Purchases | C28: Generation (GWh/yr) | E28: % Total Load | H28: GWh/yr | I28: % Total Load | J28: % of Grid Renewables
A29: Imports | C29: 0 | E29: 0 | G29: Curtailments | H29: 1318.698455 | I29: 0.01294622794 | J29: 0.02998704355
G30: Net Battery Load | H30: 1252.4937 | I30: 0.01229626749
A31: Total Load (GWh/yr) | C31: 101859.666
A32: * Battery charging included in solar and wind generation.

Sheet Introduction
C15: Generation Costs and Energy Prices in 2043
B17: This spreadsheet allows you to examine the effect of energy source costs on the total cost of generation in 2043.
B18: It uses the Data Sheets shown in Apprendix B of the main report.
B20: There are seven worksheets, one for each scenario in this project, along with a summary table andl graph:
B21: 1 - DATA ENTRY with George Power Company Capacity Expansion Plan
B22: 2 - New Gas & Biomass --> Baseload Nuclear*
B23: 3 - New Gas & New Renewables --> Baseload Nuclear
B24: 4 - All Gas & New Renewables --> Flex Nuclear
B25: 5 - All Gas & New Renewables --> Baseload & Flex Nuclear
B26: 6 - All Gas & New Renewables --> Baseload Nuclear & H2 Turbines
B27: Summary Table
B28: Summary Graph
B30: ENTER into Worksheet #1 new Capital Cost ($/kw) and Fuel Costs ($/MWh).
B31: Those values will appear and be used iin the other worksheets.
B33: To restore the original (default) values (the values used in the report), press Ctrl-D.
B35: * "-->" means "replaced by". See report for further explanation.
B40: * Professor Emeritus of Urban Studies, Queens College/CUNY and Research Director, Nuclear New York, Inc.
B41: Contact: len@nuclearny.org

Sheet 1-DATA ENTRY
A1: Generation and Cost Summary | D1: GPC Capacity Expansion Plan | H1: NREL Projected Costs | J1: Year | K1: 2043
A2: Non-dispatchable* | B2: Capacity (MW) | C2: Generation (GWh/yr) | D2: Capacity Factor (%) | E2: % Total Load | F2: Capital Cost ($/kw) | G2: Fixed O&M ($/MWh) | H2: Var O&M ($/MWh) | I2: Fuel Cost ($/MWh) | J2: Capital Recovery ($/MWh) | K2: In-State Generation Cost ($/MWh)
A3: Existing Nuclear | B3: 2978 | C3: 25060.94208 | D3: 0.9606575342 | E3: 0.2460340099 | F3: =Default!F3 -> 141 | G3: 3.700376454 | H3: 1.22 | I3: =Default!I3 -> 4.09 | J3: =IF(C3>0,0.069*F3*$B3/$C3,0) -> 1.156100274 | K3: =SUM(G3:J3) -> 10.16647673
A4: New Nuclear | B4: 930.1 | C4: 7514.041283 | D4: 0.9222312329 | E4: 0.0737685639 | F4: =Default!F4 -> 5663 | G4: 21.66177878 | H4: 0.97 | I4: =Default!I4 -> 3.4 | J4: =IF(C4>0,0.07*F4*$B4/$C4,0) -> 49.06826129 | K4: =SUM(G4:J4) -> 75.10004007
A5: Hydro | B5: 1985 | C5: 3180.60458 | D5: 0.1829132063 | E5: 0.03122535841 | F5: =Default!F5 -> 0 | G5: 27.32288715 | H5: 1.48 | I5: =Default!I5 -> 0 | K5: 28.80288715
A6: Biomass | B6: 1010 | C6: 5871.042443 | D6: 0.6635745787 | E6: 0.05763854007 | F6: =Default!F6 -> 0 | G6: 22.64269102 | H6: 5.06 | I6: =Default!I6 -> 0 | J6: 0 | K6: =SUM(G6:J6) -> 27.70269102
A7: Rooftop Solar | B7: 1500.1 | C7: 2288.32646 | D7: 0.1741380453 | E7: 0.02246548167 | F7: =Default!F7 -> 1373 | G7: 11.1442578 | H7: 0 | I7: =Default!I7 -> 0 | J7: =IF(C7>0,0.055*F7*$B7/$C7,0) -> 49.50344869 | K7: =SUM(G7:J7) -> 60.64770649
A8: Utility Solar | B8: 15211 | C8: 31479.50427 | D8: 0.2362468421 | E8: 0.309047786 | F8: =Default!F8 -> 754 | G8: 6.764846047 | H8: 0 | I8: =Default!I8 -> 0 | J8: =IF(C8>0,0.065*F8*$B8/$C8,0) -> 23.6817932 | K8: =SUM(G8:J8) -> 30.44663924
A9: Land-based Wind | B9: 3400.1 | C9: 1155.713055 | D9: 0.03880200997 | E9: 0.01134613042 | F9: =Default!F9 -> 1188 | G9: 76.49182432 | H9: 0 | I9: =Default!I9 -> 0 | J9: =IF(C9>0,0.068*F9*$B9/$C9,0) -> 237.6659822 | K9: =SUM(G9:J9) -> 314.1578065
A10: Offshore Wind | B10: 0.1 | C10: 0.4166099252 | D10: 0 | E10: 4.090038201e-06 | F10: =Default!F10 -> 4800 | G10: 17.76241888 | H10: 0 | I10: =Default!I10 -> 0 | J10: =IF(C10>0,0.066*F10*$B10/$C10,0) -> 76.04235541 | K10: =SUM(G10:J10) -> 93.80477429
A11: Total | B11: 27014.4 | C11: 76550.59078 | D11: 0.3234812513 | E11: 0.7515299603 | G11: 10.47944388 | H11: 0.9441826403 | I11: =SUMPRODUCT(I3:I10,C3:C10)/C11 -> 1.672710715 | J11: =SUMPRODUCT(J3:J10,C3:C10)/C11 -> 20.00181066 | K11: =SUMPRODUCT(K3:K10,C3:C10)/C11 -> 33.0981479
A13: Dispatchable | B13: Capacity (MW) | C13: Generation (GWh/yr) | D13: Capacity Factor (%) | E13: % Total Load | F13: Capital Cost ($/kw) | G13: Fixed O&M ($/MWh) | H13: Var O&M ($/MWh) | I13: Fuel Cost ($/MWh) | J13: Capital Recovery ($/MWh) | K13: In-State Generation Cost ($/MWh)
A14: Battery Discharge | B14: 7920.1 | C14: 7082.920315 | D14: 0.1020886791 | E14: 0.06953606458 | F14: =Default!F14 -> 1140 | G14: 27.95492413 | H14: 0 | I14: =Default!I14 -> 0 | J14: =IF(C14>1.01,0.077*F14*$B14/C14,0) -> 98.15532959 | K14: =SUM(G14:J14) -> 126.1102537
A15: Flex Nuclear | B15: 0.001 | C15: 0 | D15: 0 | E15: 0 | F15: =Default!F15 -> 5480 | G15: 0 | H15: 0 | I15: =Default!I15 -> 2.6 | J15: =IF(C15>1,0.07*F15*$B15/C15,0) -> 0 | K15: =SUM(G15:J15) -> 2.6
A16: Existing Gas CC | B16: 5470 | C16: 10202.90782 | D16: 0.2129278802 | E16: 0.1001663192 | F16: =Default!F16 -> 0 | G16: 7.828234206 | H16: 2.6416 | I16: =Default!I16 -> 35 | J16: =IF(C16>1,0.07*F16*$B16/C16,0) -> 0 | K16: =SUM(G16:J16) -> 45.46983421
A17: New Gas CC | B17: 8040 | C17: 14996.59577 | D17: 0.2129278802 | E17: 0.1472280085 | F17: =Default!F17 -> 1485 | G17: 10.72243344 | H17: 2 | I17: =Default!I17 -> 31 | J17: =IF(C17>1,0.07*F17*$B17/C17,0) -> 55.7298478 | K17: 99.45228124
A18: Hydrogen Turbine | B18: 1e-05 | C18: 0 | D18: 0 | E18: 0 | F18: =Default!F18 -> 1257 | G18: 0 | H18: 0 | I18: =Default!I18 -> 33 | J18: =IF(C18>1,0.07*F18*$B18/C18,0) -> 0 | K18: =SUM(G18:J18) -> 33
A19: Coal | B19: 0 | C19: 0 | D19: 0 | E19: 0 | F19: =Default!F19 -> 0 | G19: 0 | H19: 0 | I19: =Default!I19 -> 0 | J19: =IF(C19>1,0.07*F19*$B19/C19,0) -> 0 | K19: =SUM(G19:J19) -> 0
A20: Steam Plants | B20: 648 | C20: 68.40651962 | D20: 0.01205086949 | E20: 0.0006715761231 | F20: =Default!F20 -> 0 | G20: 10.72243344 | H20: 2.6416 | I20: =Default!I20 -> 35 | J20: =IF(C20>1,0.07*F20*$B20/C20,0) -> 0 | K20: =SUM(G20:J20) -> 48.36403344
A21: Existing Gas CT | B21: 3084 | C21: 22.77597948 | D21: 0.0008430602002 | E21: 0.0002236015526 | F21: =Default!F21 -> 0 | G21: 2285.541785 | H21: 4.71 | I21: =Default!I21 -> 54 | J21: 0 | K21: =SUM(G21:J21) -> 2344.251785
A22: New Gas CT | B22: 2490 | C22: 18.38916631 | D22: 0.0008430602002 | E22: 0.0001805343275 | F22: =Default!F22 -> 979 | G22: 988.4624291 | H22: 4.71 | I22: =Default!I22 -> 49 | J22: 9279.360311 | K22: =SUM(G22:J22) -> 10321.53274
A23: Total | B23: 27652.10101 | C23: 25309.07526 | D23: 0.1044826157 | E23: 0.2484700397 | G23: 15.73349157 | H23: 1.769566287 | I23: =SUMPRODUCT(I14:I22,C14:C22)/(C23+C14) -> 25.51622487 | J23: =SUMPRODUCT(J14:J22,C14:C22)/(C23+C14) -> 52.53223977 | K23: =IF(C23>1,SUMPRODUCT(K14:K22,C14:C22)/C23,0) -> 122.292279
A25: Total In-State Generation | B25: Capacity (MW) | C25: Generation (GWh/yr) | D25: Capacity Factor (%) | E25: % Total Load | G25: Fixed O&M ($/MWh) | H25: Var O&M ($/MWh) | I25: Fuel Cost ($/MWh) | J25: Capital Recovery ($/MWh) | K25: In-State Generation Cost ($/MWh)
A26: Total | B26: 54666.50101 | C26: 101859.666 | D26: 0.2127045913 | E26: 1 | G26: 11.78491732 | H26: 1.149265748 | I26: =(I11*C11+I23*C23)/C26 -> 7.597109622 | J26: =(J11*C11+J23*C23)/C26 -> 28.08464767 | K26: =(K11*C11+SUMPRODUCT(K15:K20,C15:C20)+K14*C14)/C26 -> 52.87264788
A28: Regional Purchases | C28: Generation (GWh/yr) | E28: % Total Load | H28: GWh/yr | I28: % Total Load | J28: % of Grid Renewables
A29: Imports | C29: 0 | E29: 0 | G29: Curtailments | H29: 1318.698455 | I29: 0.01294622794 | J29: 0.02998704355
G30: Net Battery Load | H30: 1252.4937 | I30: 0.01229626749
A31: Total Load (GWh/yr) | C31: 101859.666
A32: * Battery charging included in solar and wind generation.

Sheet 2
A1: Generation and Cost Summary | C1: New Gas & Biomass ―> New Baseload Nuclear | H1: NREL Projected Costs | J1: Year | K1: 2043
A2: Non-dispatchable* | B2: Capacity (MW) | C2: Generation (GWh/yr) | D2: Capacity Factor (%) | E2: % Total Load | F2: Capital Cost ($/kw) | G2: Fixed O&M ($/MWh) | H2: Var O&M ($/MWh) | I2: Fuel Cost ($/MWh) | J2: Capital Recovery ($/MWh) | K2: In-State Generation Cost ($/MWh)
A3: Existing Nuclear | B3: 2978 | C3: 25060.94208 | D3: 0.9606575342 | E3: 0.2452634815 | F3: ='1-DATA ENTRY'!F3 -> 141 | G3: 3.700376454 | H3: 1.22 | I3: ='1-DATA ENTRY'!I3 -> 4.09 | J3: =IF(C3>0,0.069*F3*$B3/$C3,0) -> 1.156100274 | K3: =SUM(G3:J3) -> 10.16647673
A4: New Nuclear | B4: 4000 | C4: 32314.9824 | D4: 0.9222312329 | E4: 0.3162564704 | F4: ='1-DATA ENTRY'!F4 -> 5663 | G4: 21.66177878 | H4: 0.97 | I4: ='1-DATA ENTRY'!I4 -> 3.4 | J4: =IF(C4>0,0.07*F4*$B4/$C4,0) -> 49.06826129 | K4: =SUM(G4:J4) -> 75.10004007
A5: Hydro | B5: 1985 | C5: 3180.60458 | D5: 0.1829132063 | E5: 0.03112756695 | F5: ='1-DATA ENTRY'!F5 -> 0 | G5: 27.32288715 | H5: 1.48 | I5: ='1-DATA ENTRY'!I5 -> 0 | K5: 28.80288715
A6: Biomass | B6: 0 | C6: 0 | D6: 0 | E6: 0 | F6: ='1-DATA ENTRY'!F6 -> 0 | G6: 0 | H6: 5.06 | I6: ='1-DATA ENTRY'!I6 -> 0 | J6: 0 | K6: =SUM(G6:J6) -> 5.06
A7: Rooftop Solar | B7: 1500.1 | C7: 2288.32646 | D7: 0.1741380453 | E7: 0.02239512435 | F7: ='1-DATA ENTRY'!F7 -> 1373 | G7: 11.1442578 | H7: 0 | I7: ='1-DATA ENTRY'!I7 -> 0 | J7: =IF(C7>0,0.055*F7*$B7/$C7,0) -> 49.50344869 | K7: =SUM(G7:J7) -> 60.64770649
A8: Utility Solar | B8: 15211 | C8: 28145.07783 | D8: 0.2112226959 | E8: 0.2754469386 | F8: ='1-DATA ENTRY'!F8 -> 754 | G8: 7.566296363 | H8: 0 | I8: ='1-DATA ENTRY'!I8 -> 0 | J8: =IF(C8>0,0.065*F8*$B8/$C8,0) -> 26.48744177 | K8: =SUM(G8:J8) -> 34.05373813
A9: Land-based Wind | B9: 3400.1 | C9: 1093.440799 | D9: 0.03671127586 | E9: 0.01070115786 | F9: ='1-DATA ENTRY'!F9 -> 1188 | G9: 80.84808986 | H9: 0 | I9: ='1-DATA ENTRY'!I9 -> 0 | J9: =IF(C9>0,0.068*F9*$B9/$C9,0) -> 251.2012343 | K9: =SUM(G9:J9) -> 332.0493242
A10: Offshore Wind | B10: 0.1 | C10: 0.4028793277 | D10: 0 | E10: 3.942852037e-06 | F10: ='1-DATA ENTRY'!F10 -> 4800 | G10: 18.36778284 | H10: 0 | I10: ='1-DATA ENTRY'!I10 -> 0 | J10: =IF(C10>0,0.066*F10*$B10/$C10,0) -> 78.6339676 | K10: =SUM(G10:J10) -> 97.00175043
A11: Total | B11: 29074.3 | C11: 92083.77703 | D11: 0.3615511532 | E11: 0.9011946825 | G11: 13.10224188 | H11: 0.7235495675 | I11: =SUMPRODUCT(I3:I10,C3:C10)/C11 -> 2.306271529 | J11: =SUMPRODUCT(J3:J10,C3:C10)/C11 -> 29.84336189 | K11: =SUMPRODUCT(K3:K10,C3:C10)/C11 -> 45.97542487
A13: Dispatchable | B13: Capacity (MW) | C13: Generation (GWh/yr) | D13: Capacity Factor (%) | E13: % Total Load | F13: Capital Cost ($/kw) | G13: Fixed O&M ($/MWh) | H13: Var O&M ($/MWh) | I13: Fuel Cost ($/MWh) | J13: Capital Recovery ($/MWh) | K13: In-State Generation Cost ($/MWh)
A14: Battery Discharge | B14: 7920.1 | C14: 9336.291473 | D14: 0.1345673284 | E14: 0.09137131971 | F14: ='1-DATA ENTRY'!F14 -> 1140 | G14: 21.20783189 | H14: 0 | I14: ='1-DATA ENTRY'!I14 -> 0 | J14: =IF(C14>1.01,0.077*F14*$B14/C14,0) -> 74.46493932 | K14: =SUM(G14:J14) -> 95.6727712
A15: Flex Nuclear | B15: 0.001 | C15: 0 | D15: 0 | E15: 0 | F15: ='1-DATA ENTRY'!F15 -> 5480 | G15: 0 | H15: 0 | I15: ='1-DATA ENTRY'!I15 -> 2.6 | J15: =IF(C15>1,0.07*F15*$B15/C15,0) -> 0 | K15: =SUM(G15:J15) -> 2.6
A16: Existing Gas CC | B16: 5470 | C16: 8773.05791 | D16: 0.1830878664 | E16: 0.08585913169 | F16: ='1-DATA ENTRY'!F16 -> 0 | G16: 9.104094925 | H16: 2.6416 | I16: ='1-DATA ENTRY'!I16 -> 35 | J16: 0 | K16: =SUM(G16:J16) -> 46.74569493
A17: New Gas CC | B17: 0 | C17: 0 | D17: 0 | E17: 0 | F17: ='1-DATA ENTRY'!F17 -> 1485 | G17: 0 | H17: 0 | I17: ='1-DATA ENTRY'!I17 -> 31 | J17: 0 | K17: 31
A18: Hydrogen Turbine | B18: 1e-05 | C18: 0 | D18: 0 | E18: 0 | F18: ='1-DATA ENTRY'!F18 -> 1257 | G18: 0 | H18: 0 | I18: ='1-DATA ENTRY'!I18 -> 33 | J18: =IF(C18>1,0.07*F18*$B18/C18,0) -> 0 | K18: =SUM(G18:J18) -> 33
A19: Coal | B19: 0 | C19: 0 | D19: 0 | E19: 0 | F19: ='1-DATA ENTRY'!F19 -> 0 | G19: 0 | H19: 0 | I19: ='1-DATA ENTRY'!I19 -> 0 | J19: =IF(C19>1,0.07*F19*$B19/C19,0) -> 0 | K19: =SUM(G19:J19) -> 0
A20: Steam Plants | B20: 648 | C20: 491.2257522 | D20: 0.08653703567 | E20: 0.004807470437 | F20: ='1-DATA ENTRY'!F20 -> 0 | G20: 0 | H20: 2.6416 | I20: ='1-DATA ENTRY'!I20 -> 35 | J20: =IF(C20>1,0.07*F20*$B20/C20,0) -> 0 | K20: =SUM(G20:J20) -> 37.6416
A21: Existing Gas CT | B21: 3084 | C21: 831.611263 | D21: 0.03078235816 | E21: 0.008138715335 | F21: ='1-DATA ENTRY'!F21 -> 0 | G21: 62.5958968 | H21: 4.71 | I21: ='1-DATA ENTRY'!I21 -> 54 | J21: =IF(C21>1,0.07*F21*$B21/C21,0) -> 0 | K21: =SUM(G21:J21) -> 121.3058968
A22: New Gas CT | B22: 0 | C22: 0 | D22: 0 | E22: 0 | F22: ='1-DATA ENTRY'!F22 -> 979 | G22: 0 | H22: 0 | I22: ='1-DATA ENTRY'!I22 -> 49 | J22: =IF(C22>1,0.07*F22*$B22/C22,0) -> 0 | K22: =SUM(G22:J22) -> 49
A23: Total | B23: 17122.10101 | C23: 10095.89493 | D23: 0.06731063086 | E23: 0.09880531746 | G23: 16.97846542 | H23: 1.460948356 | I23: =SUMPRODUCT(I14:I22,C14:C22)/(C23+C14) -> 18.99718996 | J23: =SUMPRODUCT(J14:J22,C14:C22)/(C23+C14) -> 35.77705379 | K23: =IF(C23>1,SUMPRODUCT(K14:K22,C14:C22)/C23,0) -> 140.9188042
A25: Total In-State Generation | B25: Capacity (MW) | C25: Generation (GWh/yr) | D25: Capacity Factor (%) | E25: % Total Load | G25: Fixed O&M ($/MWh) | H25: Var O&M ($/MWh) | I25: Fuel Cost ($/MWh) | J25: Capital Recovery ($/MWh) | K25: In-State Generation Cost ($/MWh)
A26: Total | B26: 46196.40101 | C26: 102179.672 | D26: 0.2524946935 | E26: 1 | G26: 13.48523338 | H26: 0.7964084889 | I26: =(I11*C11+I23*C23)/C26 -> 3.955423024 | J26: =(J11*C11+J23*C23)/C26 -> 30.4296422 | K26: =(K11*C11+SUMPRODUCT(K15:K20,C15:C20)+K14*C14)/C26 -> 54.36906144
A28: Regional Purchases | C28: Generation (GWh/yr) | E28: % Total Load | H28: GWh/yr | I28: % Total Load | J28: % of Grid Renewables
A29: Imports | C29: 0 | E29: 0 | G29: Curtailments | H29: 4715.410882 | I29: 0.04614822882 | J29: =H29/SUM(C5:C10) -> 0.1358600586
G30: Net Battery Load | H30: 1650.963971 | I30: 0.01615746009
B31: Total Load (GWh/yr) | C31: 102179.672
A32: * Battery charging included in solar and wind generation.

Sheet 3
A1: Generation and Cost Summary | C1: New Gas & New Renewables ―> New Baseload Nuclear | H1: NREL Projected Costs | J1: Year | K1: 2043
A2: Non-dispatchable* | B2: Capacity (MW) | C2: Generation (GWh/yr) | D2: Capacity Factor (%) | E2: % Total Load | F2: Capital Cost ($/kw) | G2: Fixed O&M ($/MWh) | H2: Var O&M ($/MWh) | I2: Fuel Cost ($/MWh) | J2: Capital Recovery ($/MWh) | K2: In-State Generation Cost ($/MWh)
A3: Existing Nuclear | B3: 2978 | C3: 25060.94208 | D3: 0.9606575342 | E3: 0.249084003 | F3: 141 | G3: 3.700376454 | H3: 1.22 | I3: 4.09 | J3: =IF(C3>0,0.069*F3*$B3/$C3,0) -> 1.156100274 | K3: =SUM(G3:J3) -> 10.16647673
A4: New Nuclear | B4: 6930.1 | C4: 54341.12927 | D4: 0.8951278134 | E4: 0.5401036387 | F4: 5663 | G4: 22.31767201 | H4: 0.97 | I4: 3.4 | J4: =IF(C4>0,0.07*F4*$B4/$C4,0) -> 50.55399065 | K4: =SUM(G4:J4) -> 77.24166266
A5: Hydro | B5: 1985 | C5: 3180.60458 | D5: 0.1829132063 | E5: 0.03161244769 | G5: 27.32288715 | H5: 1.48 | K5: 28.80288715
A6: Biomass | B6: 0 | C6: 0 | D6: 0 | E6: 0 | G6: 0 | H6: 5.06 | I6: 0 | J6: 0 | K6: =SUM(G6:J6) -> 5.06
A7: Rooftop Solar | B7: 1500.1 | C7: 2288.32646 | D7: 0.1741380453 | E7: 0.02274397798 | F7: 1373 | G7: 11.1442578 | H7: 0 | I7: 0 | J7: =IF(C7>0,0.055*F7*$B7/$C7,0) -> 49.50344869 | K7: =SUM(G7:J7) -> 60.64770649
A8: Utility Solar | B8: 3631 | C8: 5150.24046 | D8: 0.1619187533 | E8: 0.05118891804 | F8: 754 | G8: 9.870218758 | H8: 0 | I8: 0 | J8: =IF(C8>0,0.065*F8*$B8/$C8,0) -> 34.55281581 | K8: =SUM(G8:J8) -> 44.42303457
A9: Land-based Wind | B9: 0 | C9: 0 | D9: 0 | E9: 0 | F9: 1188 | G9: 0 | H9: 0 | I9: 0 | J9: =IF(C9>0,0.068*F9*$B9/$C9,0) -> 0 | K9: =SUM(G9:J9) -> 0
A10: Offshore Wind | B10: 0.1 | C10: 0.2856736081 | D10: 0 | E10: 2.839347604e-06 | F10: 4800 | G10: 25.90368795 | H10: 0 | I10: 0 | J10: =IF(C10>0,0.066*F10*$B10/$C10,0) -> 110.8957884 | K10: =SUM(G10:J10) -> 136.7994764
A11: Total | B11: 17024.3 | C11: 90021.52853 | D11: 0.6036330538 | E11: 0.8947358247 | G11: 16.31552856 | H11: 0.977461069 | I11: 3.191004389 | J11: =SUMPRODUCT(J3:J10,C3:C10)/C11 -> 34.074082 | K11: =SUMPRODUCT(K3:K10,C3:C10)/C11 -> 54.55807602
A13: Dispatchable | B13: Capacity (MW) | C13: Generation (GWh/yr) | D13: Capacity Factor (%) | E13: % Total Load | F13: Capital Cost ($/kw) | G13: Fixed O&M ($/MWh) | H13: Var O&M ($/MWh) | I13: Fuel Cost ($/MWh) | J13: Capital Recovery ($/MWh) | K13: In-State Generation Cost ($/MWh)
A14: Battery Discharge | B14: 0 | C14: 0 | D14: 0 | E14: 0 | F14: 1140 | G14: 0 | H14: 0 | I14: 0 | J14: =IF(C14>1.01,0.077*F14*$B14/C14,0) -> 0 | K14: =SUM(G14:J14) -> 0
A15: Flex Nuclear | B15: 0.001 | C15: 0 | D15: 0 | E15: 0 | F15: 5480 | G15: 0 | H15: 0 | I15: 2.6 | J15: =IF(C15>1,0.07*F15*$B15/C15,0) -> 0 | K15: =SUM(G15:J15) -> 2.6
A16: Existing Gas CC | B16: 5470 | C16: 9728.76601 | D16: 0.2030328569 | E16: 0.09669548632 | F16: 0 | G16: 8.209751567 | H16: 2.6416 | I16: 35 | J16: 0 | K16: =SUM(G16:J16) -> 45.85135157
A17: New Gas CC | B17: 0 | C17: 0 | D17: 0 | E17: 0 | F17: 1485 | G17: 0 | H17: 0 | I17: 31 | J17: 0 | K17: 31
A18: Hydrogen Turbine | B18: 1e-05 | C18: 0 | D18: 0 | E18: 0 | F18: 1257 | G18: 0 | H18: 0 | I18: 33 | J18: =IF(C18>1,0.07*F18*$B18/C18,0) -> 0 | K18: =SUM(G18:J18) -> 33
A19: Coal | B19: 0 | C19: 0 | D19: 0 | E19: 0 | F19: 0 | G19: 0 | H19: 0 | I19: 0 | J19: =IF(C19>1,0.07*F19*$B19/C19,0) -> 0 | K19: =SUM(G19:J19) -> 0
A20: Steam Plants | B20: 648 | C20: 395.5127982 | D20: 0.0696757142 | E20: 0.003931053776 | G20: 0 | H20: 2.6416 | I20: 35 | J20: =IF(C20>1,0.07*F20*$B20/C20,0) -> 0 | K20: =SUM(G20:J20) -> 37.6416
A21: Existing Gas CT | B21: 3084 | C21: 466.6036554 | D21: 0.01727148426 | E21: 0.004637635166 | F21: 0 | G21: 111.5624625 | H21: 4.71 | I21: 54 | J21: =IF(C21>1,0.07*F21*$B21/C21,0) -> 0 | K21: =SUM(G21:J21) -> 170.2724625
A22: New Gas CT | B22: 0 | C22: 0 | D22: 0 | E22: 0 | F22: 979 | G22: 0 | H22: 0 | I22: 49 | J22: =IF(C22>1,0.07*F22*$B22/C22,0) -> 0 | K22: =SUM(G22:J22) -> 49
A23: Total | B23: 9202.00101 | C23: 10590.88246 | D23: 0.131384994 | E23: 0.1052641753 | G23: 12.45658284 | H23: 2.732727723 | I23: 35.83708506 | J23: =SUMPRODUCT(J14:J22,C14:C22)/(C23+C14) -> 0 | K23: =IF(C23>1,SUMPRODUCT(K14:K22,C14:C22)/C23,0) -> 51.02639562
A25: Total In-State Generation | B25: Capacity (MW) | C25: Generation (GWh/yr) | D25: Capacity Factor (%) | E25: % Total Load | G25: Fixed O&M ($/MWh) | H25: Var O&M ($/MWh) | I25: Fuel Cost ($/MWh) | J25: Capital Recovery ($/MWh) | K25: In-State Generation Cost ($/MWh)
A26: Total | B26: 26226.30101 | C26: 100612.411 | D26: 0.4379357592 | E26: 1 | G26: 15.90931982 | H26: 1.162227766 | I26: 6.627467146 | J26: =(J11*C11+J23*C23)/C26 -> 30.48730186 | K26: =(K11*C11+SUMPRODUCT(K15:K20,C15:C20)+K14*C14)/C26 -> 53.39665503
A28: Regional Purchases | C28: Generation (GWh/yr) | E28: % Total Load | H28: GWh/yr | I28: % Total Load | J28: % of Grid Renewables
A29: Imports | C29: 0 | E29: 0 | G29: Curtailments | H29: 4315.760682 | I29: 0.04289491366 | J29: =H29/SUM(C5:C10) -> 0.4064012512
G30: Net Battery Load | H30: 0 | I30: 0
B31: Total Load (GWh/yr) | C31: 100612.411
A32: * Battery charging included in solar and wind generation.

Sheet 4
A1: Generation and Cost Summary | C1: All Gas & New Renewables ―> Flex Nuclear | H1: NREL Projected Costs | J1: Year | K1: 2043
A2: Non-dispatchable* | B2: Capacity (MW) | C2: Generation (GWh/yr) | D2: Capacity Factor (%) | E2: % Total Load | F2: Capital Cost ($/kw) | G2: Fixed O&M ($/MWh) | H2: Var O&M ($/MWh) | I2: Fuel Cost ($/MWh) | J2: Capital Recovery ($/MWh) | K2: In-State Generation Cost ($/MWh)
A3: Existing Nuclear | B3: 2978 | C3: 25060.94208 | D3: 0.9606575342 | E3: 0.2492807983 | F3: ='1-DATA ENTRY'!F3 -> 141 | G3: 3.700376454 | H3: 1.22 | I3: ='1-DATA ENTRY'!I3 -> 4.09 | J3: =IF(C3>0,0.069*F3*$B3/$C3,0) -> 1.156100274 | K3: =SUM(G3:J3) -> 10.16647673
A4: New Nuclear | B4: 930.1 | C4: 7513.185859 | D4: 0.922126243 | E4: 0.07473354205 | F4: ='1-DATA ENTRY'!F4 -> 5663 | G4: 21.66424511 | H4: 0.97 | I4: ='1-DATA ENTRY'!I4 -> 3.4 | J4: =IF(C4>0,0.07*F4*$B4/$C4,0) -> 49.07384802 | K4: =SUM(G4:J4) -> 75.10809313
A5: Hydro | B5: 1985 | C5: 3180.60458 | D5: 0.1829132063 | E5: 0.03163742393 | F5: ='1-DATA ENTRY'!F5 -> 0 | G5: 27.32288715 | H5: 1.48 | I5: ='1-DATA ENTRY'!I5 -> 0 | K5: 28.80288715
A6: Biomass | B6: 0 | C6: 0 | D6: 0 | E6: 0 | F6: ='1-DATA ENTRY'!F6 -> 0 | G6: 0 | H6: 5.06 | I6: ='1-DATA ENTRY'!I6 -> 0 | J6: 0 | K6: =SUM(G6:J6) -> 5.06
A7: Rooftop Solar | B7: 1500.1 | C7: 2288.32646 | D7: 0.1741380453 | E7: 0.02276194745 | F7: ='1-DATA ENTRY'!F7 -> 1373 | G7: 11.1442578 | H7: 0 | I7: ='1-DATA ENTRY'!I7 -> 0 | J7: =IF(C7>0,0.055*F7*$B7/$C7,0) -> 49.50344869 | K7: =SUM(G7:J7) -> 60.64770649
A8: Utility Solar | B8: 3631 | C8: 7820.10584 | D8: 0.245856829 | E8: 0.0777864703 | F8: ='1-DATA ENTRY'!F8 -> 754 | G8: 6.500423529 | H8: 0 | I8: ='1-DATA ENTRY'!I8 -> 0 | J8: =IF(C8>0,0.065*F8*$B8/$C8,0) -> 22.75612551 | K8: =SUM(G8:J8) -> 29.25654904
A9: Land-based Wind | B9: 0 | C9: 0 | D9: 0 | E9: 0 | F9: ='1-DATA ENTRY'!F9 -> 1188 | G9: 0 | H9: 0 | I9: ='1-DATA ENTRY'!I9 -> 0 | J9: =IF(C9>0,0.068*F9*$B9/$C9,0) -> 0 | K9: =SUM(G9:J9) -> 0
A10: Offshore Wind | B10: 0.1 | C10: 0.4244308484 | D10: 0 | E10: 4.221807001e-06 | F10: ='1-DATA ENTRY'!F10 -> 4800 | G10: 17.43511347 | H10: 0 | I10: ='1-DATA ENTRY'!I10 -> 0 | J10: =IF(C10>0,0.066*F10*$B10/$C10,0) -> 74.6411344 | K10: =SUM(G10:J10) -> 92.07624787
A11: Total | B11: 11024.3 | C11: 45863.58925 | D11: 0.4749117449 | E11: 0.4562044039 | G11: 9.130310707 | H11: 0.9281749443 | I11: =SUMPRODUCT(I3:I10,C3:C10)/C11 -> 2.791846149 | J11: =SUMPRODUCT(J3:J10,C3:C10)/C11 -> 15.02152265 | K11: =SUMPRODUCT(K3:K10,C3:C10)/C11 -> 27.87185445
A13: Dispatchable | B13: Capacity (MW) | C13: Generation (GWh/yr) | D13: Capacity Factor (%) | E13: % Total Load | F13: Capital Cost ($/kw) | G13: Fixed O&M ($/MWh) | H13: Var O&M ($/MWh) | I13: Fuel Cost ($/MWh) | J13: Capital Recovery ($/MWh) | K13: In-State Generation Cost ($/MWh)
A14: Battery Discharge | B14: 0 | C14: 0 | D14: 0 | E14: 0 | F14: ='1-DATA ENTRY'!F14 -> 1140 | G14: 0 | H14: 0 | I14: ='1-DATA ENTRY'!I14 -> 0 | J14: =IF(C14>1.01,0.077*F14*$B14/C14,0) -> 0 | K14: =SUM(G14:J14) -> 0
A15: Flex Nuclear | B15: 16000.001 | C15: 54669.39303 | D15: 0.3900498688 | E15: 0.5437955961 | F15: ='1-DATA ENTRY'!F15 -> 5480 | G15: 39.80289547 | H15: 1.2 | I15: ='1-DATA ENTRY'!I15 -> 2.6 | J15: =IF(C15>1,0.07*F15*$B15/C15,0) -> 112.2675787 | K15: =SUM(G15:J15) -> 155.8704742
A16: Existing Gas CC | B16: 0 | C16: 0 | D16: 0 | E16: 0 | F16: ='1-DATA ENTRY'!F16 -> 0 | G16: 0 | H16: 0 | I16: ='1-DATA ENTRY'!I16 -> 35 | J16: 0 | K16: =SUM(G16:J16) -> 35
A17: New Gas CC | B17: 0 | C17: 0 | D17: 0 | E17: 0 | F17: ='1-DATA ENTRY'!F17 -> 1485 | G17: 0 | H17: 0 | I17: ='1-DATA ENTRY'!I17 -> 31 | J17: 0 | K17: 31
A18: Hydrogen Turbine | B18: 1e-05 | C18: 0 | D18: 0 | E18: 0 | F18: ='1-DATA ENTRY'!F18 -> 1257 | G18: 0 | H18: 0 | I18: ='1-DATA ENTRY'!I18 -> 33 | J18: =IF(C18>1,0.07*F18*$B18/C18,0) -> 0 | K18: =SUM(G18:J18) -> 33
A19: Coal | B19: 0 | C19: 0 | D19: 0 | E19: 0 | F19: ='1-DATA ENTRY'!F19 -> 0 | G19: 0 | H19: 0 | I19: ='1-DATA ENTRY'!I19 -> 0 | J19: =IF(C19>1,0.07*F19*$B19/C19,0) -> 0 | K19: =SUM(G19:J19) -> 0
A20: Steam Plants | B20: 0 | C20: 0 | D20: 0 | E20: 0 | F20: ='1-DATA ENTRY'!F20 -> 0 | G20: 0 | H20: 0 | I20: ='1-DATA ENTRY'!I20 -> 35 | J20: =IF(C20>1,0.07*F20*$B20/C20,0) -> 0 | K20: =SUM(G20:J20) -> 35
A21: Existing Gas CT | B21: 0 | C21: 0 | D21: 0 | E21: 0 | F21: ='1-DATA ENTRY'!F21 -> 0 | G21: 0 | H21: 0 | I21: ='1-DATA ENTRY'!I21 -> 54 | J21: =IF(C21>1,0.07*F21*$B21/C21,0) -> 0 | K21: =SUM(G21:J21) -> 54
A22: New Gas CT | B22: 0 | C22: 0 | D22: 0 | E22: 0 | F22: ='1-DATA ENTRY'!F22 -> 979 | G22: 0 | H22: 0 | I22: 49 | J22: =IF(C22>1,0.07*F22*$B22/C22,0) -> 0 | K22: =SUM(G22:J22) -> 49
A23: Total | B23: 16000.00101 | C23: 54669.39303 | D23: 0.3900498686 | E23: 0.5437955961 | G23: 39.80289547 | H23: 1.2 | I23: =SUMPRODUCT(I14:I22,C14:C22)/(C23+C14) -> 2.6 | J23: =SUMPRODUCT(J14:J22,C14:C22)/(C23+C14) -> 112.2675787 | K23: =IF(C23>1,SUMPRODUCT(K14:K22,C14:C22)/C23,0) -> 155.8704742
A25: Total In-State Generation | B25: Capacity (MW) | C25: Generation (GWh/yr) | D25: Capacity Factor (%) | E25: % Total Load | G25: Fixed O&M ($/MWh) | H25: Var O&M ($/MWh) | I25: Fuel Cost ($/MWh) | J25: Capital Recovery ($/MWh) | K25: In-State Generation Cost ($/MWh)
A26: Total | B26: 27024.30101 | C26: 100532.9823 | D26: 0.4246684433 | E26: 1 | G26: 25.80992722 | H26: 1.075992213 | I26: =(I11*C11+I23*C23)/C26 -> 2.687521058 | J26: =(J11*C11+J23*C23)/C26 -> 67.90349966 | K26: =(K11*C11+SUMPRODUCT(K15:K20,C15:C20)+K14*C14)/C26 -> 97.47694015
A28: Regional Purchases | C28: Generation (GWh/yr) | E28: % Total Load | H28: GWh/yr | I28: % Total Load | J28: % of Grid Renewables
A29: Imports | C29: 0 | E29: 0 | G29: Curtailments | H29: 1.22636069 | I29: 1.219859057e-05 | J29: =H29/SUM(C5:C10) -> 9.228069228e-05
G30: Net Battery Load | H30: 0 | I30: 0
B31: Total Load (GWh/yr) | C31: 100532.9823
A32: * Battery charging included in solar and wind generation.

Sheet 5
A1: Generation and Cost Summary | C1: All Gas & New Renewables ―> Baseload & Flex Nuclear | H1: NREL Projected Costs | J1: Year | K1: 2043
A2: Non-dispatchable* | B2: Capacity (MW) | C2: Generation (GWh/yr) | D2: Capacity Factor (%) | E2: % Total Load | F2: Capital Cost ($/kw) | G2: Fixed O&M ($/MWh) | H2: Var O&M ($/MWh) | I2: Fuel Cost ($/MWh) | J2: Capital Recovery ($/MWh) | K2: In-State Generation Cost ($/MWh)
A3: Existing Nuclear | B3: 2978 | C3: 25060.94208 | D3: 0.9606575342 | E3: 0.2492408675 | F3: ='1-DATA ENTRY'!F3 -> 141 | G3: 3.700376454 | H3: 1.22 | I3: ='1-DATA ENTRY'!I3 -> 4.09 | J3: =IF(C3>0,0.069*F3*$B3/$C3,0) -> 1.156100274 | K3: =SUM(G3:J3) -> 10.16647673
A4: New Nuclear | B4: 6430.1 | C4: 51097.33136 | D4: 0.9071443204 | E4: 0.5081829388 | F4: ='1-DATA ENTRY'!F4 -> 5663 | G4: 22.02204049 | H4: 0.97 | I4: ='1-DATA ENTRY'!I4 -> 3.4 | J4: =IF(C4>0,0.07*F4*$B4/$C4,0) -> 49.88432611 | K4: =SUM(G4:J4) -> 76.27636659
A5: Hydro | B5: 1985 | C5: 3180.60458 | D5: 0.1829132063 | E5: 0.03163235612 | F5: ='1-DATA ENTRY'!F5 -> 0 | G5: 27.32288715 | H5: 1.48 | I5: ='1-DATA ENTRY'!I5 -> 0 | K5: 28.80288715
A6: Biomass | B6: 0 | C6: 0 | D6: 0 | E6: 0 | F6: ='1-DATA ENTRY'!F6 -> 0 | G6: 0 | H6: 5.06 | I6: ='1-DATA ENTRY'!I6 -> 0 | J6: 0 | K6: =SUM(G6:J6) -> 5.06
A7: Rooftop Solar | B7: 1500.1 | C7: 2288.32646 | D7: 0.1741380453 | E7: 0.02275830135 | F7: ='1-DATA ENTRY'!F7 -> 1373 | G7: 11.1442578 | H7: 0 | I7: ='1-DATA ENTRY'!I7 -> 0 | J7: =IF(C7>0,0.055*F7*$B7/$C7,0) -> 49.50344869 | K7: =SUM(G7:J7) -> 60.64770649
A8: Utility Solar | B8: 3631 | C8: 5819.554873 | D8: 0.1829613737 | E8: 0.05787774858 | F8: ='1-DATA ENTRY'!F8 -> 754 | G8: 8.735032337 | H8: 0 | I8: ='1-DATA ENTRY'!I8 -> 0 | J8: =IF(C8>0,0.065*F8*$B8/$C8,0) -> 30.57885249 | K8: =SUM(G8:J8) -> 39.31388483
A9: Land-based Wind | B9: 0 | C9: 0 | D9: 0 | E9: 0 | F9: ='1-DATA ENTRY'!F9 -> 1188 | G9: 0 | H9: 0 | I9: ='1-DATA ENTRY'!I9 -> 0 | J9: =IF(C9>0,0.068*F9*$B9/$C9,0) -> 0 | K9: =SUM(G9:J9) -> 0
A10: Offshore Wind | B10: 0.1 | C10: 0.3207603394 | D10: 0 | E10: 3.190086989e-06 | F10: ='1-DATA ENTRY'!F10 -> 4800 | G10: 23.07018384 | H10: 0 | I10: ='1-DATA ENTRY'!I10 -> 0 | J10: =IF(C10>0,0.066*F10*$B10/$C10,0) -> 98.76532758 | K10: =SUM(G10:J10) -> 121.8355114
A11: Total | B11: 16524.3 | C11: 87447.08012 | D11: 0.6041129362 | E11: 0.8696954024 | G11: 15.79525375 | H11: 0.9702560157 | I11: =SUMPRODUCT(I3:I10,C3:C10)/C11 -> 3.158826794 | J11: =SUMPRODUCT(J3:J10,C3:C10)/C11 -> 32.81065463 | K11: =SUMPRODUCT(K3:K10,C3:C10)/C11 -> 52.73499119
A13: Dispatchable | B13: Capacity (MW) | C13: Generation (GWh/yr) | D13: Capacity Factor (%) | E13: % Total Load | F13: Capital Cost ($/kw) | G13: Fixed O&M ($/MWh) | H13: Var O&M ($/MWh) | I13: Fuel Cost ($/MWh) | J13: Capital Recovery ($/MWh) | K13: In-State Generation Cost ($/MWh)
A14: Battery Discharge | B14: 0 | C14: 0 | D14: 0 | E14: 0 | F14: ='1-DATA ENTRY'!F14 -> 1140 | G14: 0 | H14: 0 | I14: ='1-DATA ENTRY'!I14 -> 0 | J14: =IF(C14>1.01,0.077*F14*$B14/C14,0) -> 0 | K14: =SUM(G14:J14) -> 0
A15: Flex Nuclear | B15: 9000.001 | C15: 13102.00853 | D15: 0.1661847676 | E15: 0.1303045976 | F15: ='1-DATA ENTRY'!F15 -> 5480 | G15: 93.42080133 | H15: 1.2 | I15: ='1-DATA ENTRY'!I15 -> 2.6 | J15: =IF(C15>1,0.07*F15*$B15/C15,0) -> 263.5016132 | K15: =SUM(G15:J15) -> 360.7224145
A16: Existing Gas CC | B16: 0 | C16: 0 | D16: 0 | E16: 0 | F16: ='1-DATA ENTRY'!F16 -> 0 | G16: 0 | H16: 0 | I16: ='1-DATA ENTRY'!I16 -> 35 | J16: 0 | K16: =SUM(G16:J16) -> 35
A17: New Gas CC | B17: 0 | C17: 0 | D17: 0 | E17: 0 | F17: ='1-DATA ENTRY'!F17 -> 1485 | G17: 0 | H17: 0 | I17: ='1-DATA ENTRY'!I17 -> 31 | J17: 0 | K17: 31
A18: Hydrogen Turbine | B18: 1e-05 | C18: 0 | D18: 0 | E18: 0 | F18: ='1-DATA ENTRY'!F18 -> 1257 | G18: 0 | H18: 0 | I18: ='1-DATA ENTRY'!I18 -> 33 | J18: =IF(C18>1,0.07*F18*$B18/C18,0) -> 0 | K18: =SUM(G18:J18) -> 33
A19: Coal | B19: 0 | C19: 0 | D19: 0 | E19: 0 | F19: ='1-DATA ENTRY'!F19 -> 0 | G19: 0 | H19: 0 | I19: ='1-DATA ENTRY'!I19 -> 0 | J19: =IF(C19>1,0.07*F19*$B19/C19,0) -> 0 | K19: =SUM(G19:J19) -> 0
A20: Steam Plants | B20: 0 | C20: 0 | D20: 0 | E20: 0 | F20: ='1-DATA ENTRY'!F20 -> 0 | G20: 0 | H20: 0 | I20: ='1-DATA ENTRY'!I20 -> 35 | J20: =IF(C20>1,0.07*F20*$B20/C20,0) -> 0 | K20: =SUM(G20:J20) -> 35
A21: Existing Gas CT | B21: 0 | C21: 0 | D21: 0 | E21: 0 | F21: ='1-DATA ENTRY'!F21 -> 0 | G21: 0 | H21: 0 | I21: ='1-DATA ENTRY'!I21 -> 54 | J21: =IF(C21>1,0.07*F21*$B21/C21,0) -> 0 | K21: =SUM(G21:J21) -> 54
A22: New Gas CT | B22: 0 | C22: 0 | D22: 0 | E22: 0 | F22: ='1-DATA ENTRY'!F22 -> 979 | G22: 0 | H22: 0 | I22: 49 | J22: =IF(C22>1,0.07*F22*$B22/C22,0) -> 0 | K22: =SUM(G22:J22) -> 49
A23: Total | B23: 9000.00101 | C23: 13102.00853 | D23: 0.1661847674 | E23: 0.1303045976 | G23: 93.42080133 | H23: 1.2 | I23: =SUMPRODUCT(I14:I22,C14:C22)/(C23+C14) -> 2.6 | J23: =SUMPRODUCT(J14:J22,C14:C22)/(C23+C14) -> 263.5016132 | K23: =IF(C23>1,SUMPRODUCT(K14:K22,C14:C22)/C23,0) -> 360.7224145
A25: Total In-State Generation | B25: Capacity (MW) | C25: Generation (GWh/yr) | D25: Capacity Factor (%) | E25: % Total Load | G25: Fixed O&M ($/MWh) | H25: Var O&M ($/MWh) | I25: Fuel Cost ($/MWh) | J25: Capital Recovery ($/MWh) | K25: In-State Generation Cost ($/MWh)
A26: Total | B26: 25524.30101 | C26: 100549.0886 | D26: 0.449697191 | E26: 1 | G26: 25.91021949 | H26: 1.000192713 | I26: =(I11*C11+I23*C23)/C26 -> 3.086009094 | J26: =(J11*C11+J23*C23)/C26 -> 62.87074715 | K26: =(K11*C11+SUMPRODUCT(K15:K20,C15:C20)+K14*C14)/C26 -> 92.86716844
A28: Regional Purchases | C28: Generation (GWh/yr) | E28: % Total Load | H28: GWh/yr | I28: % Total Load | J28: % of Grid Renewables
A29: Imports | C29: 0 | E29: 0 | G29: Curtailments | H29: 2850.836293 | I29: 0.02835268157 | J29: =H29/SUM(C5:C10) -> 0.2525365502
G30: Net Battery Load | H30: 0 | I30: 0
B31: Total Load (GWh/yr) | C31: 100549.0886
A32: * Battery charging included in solar and wind generation.

Sheet 6
A1: Generation and Cost Summary | C1: All Gas & New Renewables ―> Baseload Nuclear & H2 Turbines | H1: NREL Projected Costs | J1: Year | K1: 2043
A2: Non-dispatchable* | B2: Capacity (MW) | C2: Generation (GWh/yr) | D2: Capacity Factor (%) | E2: % Total Load | F2: Capital Cost ($/kw) | G2: Fixed O&M ($/MWh) | H2: Var O&M ($/MWh) | I2: Fuel Cost ($/MWh) | J2: Capital Recovery ($/MWh) | K2: In-State Generation Cost ($/MWh)
A3: Existing Nuclear | B3: 2978 | C3: 25060.94208 | D3: 0.9606575342 | E3: 0.2490867479 | F3: 141 | G3: 3.700376454 | H3: 1.22 | I3: 4.09 | J3: =IF(C3>0,0.069*F3*$B3/$C3,0) -> 1.156100274 | K3: =SUM(G3:J3) -> 10.16647673
A4: New Nuclear | B4: 6430.1 | C4: 51097.33136 | D4: 0.9071443204 | E4: 0.5078687009 | F4: 5663 | G4: 22.02204049 | H4: 0.97 | I4: 3.4 | J4: =IF(C4>0,0.07*F4*$B4/$C4,0) -> 49.88432611 | K4: =SUM(G4:J4) -> 76.27636659
A5: Hydro | B5: 1985 | C5: 3180.60458 | D5: 0.1829132063 | E5: 0.03161279606 | G5: 27.32288715 | H5: 1.48 | K5: 28.80288715
A6: Biomass | B6: 0 | C6: 0 | D6: 0 | E6: 0 | G6: 0 | H6: 5.06 | I6: 0 | J6: 0 | K6: =SUM(G6:J6) -> 5.06
A7: Rooftop Solar | B7: 1500.1 | C7: 2288.32646 | D7: 0.1741380453 | E7: 0.02274422862 | F7: 1373 | G7: 11.1442578 | H7: 0 | I7: 0 | J7: =IF(C7>0,0.055*F7*$B7/$C7,0) -> 49.50344869 | K7: =SUM(G7:J7) -> 60.64770649
A8: Utility Solar | B8: 3681 | C8: 5876.854537 | D8: 0.1822531393 | E8: 0.05841147472 | F8: 754 | G8: 8.768976614 | H8: 0 | I8: 0 | J8: =IF(C8>0,0.065*F8*$B8/$C8,0) -> 30.6976817 | K8: =SUM(G8:J8) -> 39.46665832
A9: Land-based Wind | B9: 0 | C9: 0 | D9: 0 | E9: 0 | F9: 1188 | G9: 0 | H9: 0 | I9: 0 | J9: =IF(C9>0,0.068*F9*$B9/$C9,0) -> 0 | K9: =SUM(G9:J9) -> 0
A10: Offshore Wind | B10: 0.1 | C10: 0.3205476884 | D10: 0 | E10: 3.18600079e-06 | F10: 4800 | G10: 23.08548858 | H10: 0 | I10: 0 | J10: =IF(C10>0,0.066*F10*$B10/$C10,0) -> 98.8308484 | K10: =SUM(G10:J10) -> 121.916337
A11: Total | B11: 16574.3 | C11: 87504.37957 | D11: 0.6026851466 | E11: 0.8697271342 | G11: 15.79291033 | H11: 0.9696206745 | I11: 3.156758337 | J11: =SUMPRODUCT(J3:J10,C3:C10)/C11 -> 32.81717394 | K11: =SUMPRODUCT(K3:K10,C3:C10)/C11 -> 52.73646328
A13: Dispatchable | B13: Capacity (MW) | C13: Generation (GWh/yr) | D13: Capacity Factor (%) | E13: % Total Load | F13: Capital Cost ($/kw) | G13: Fixed O&M ($/MWh) | H13: Var O&M ($/MWh) | I13: Fuel Cost ($/MWh) | J13: Capital Recovery ($/MWh) | K13: In-State Generation Cost ($/MWh)
A14: Battery Discharge | B14: 0 | C14: 0 | D14: 0 | E14: 0 | F14: 1140 | G14: 0 | H14: 0 | I14: 0 | J14: =IF(C14>1.01,0.077*F14*$B14/C14,0) -> 0 | K14: =SUM(G14:J14) -> 0
A15: Flex Nuclear | B15: 0.001 | C15: 0 | D15: 0 | E15: 0 | F15: 5480 | G15: 0 | H15: 0 | I15: 2.6 | J15: =IF(C15>1,0.07*F15*$B15/C15,0) -> 0 | K15: =SUM(G15:J15) -> 2.6
A16: Existing Gas CC | B16: 0 | C16: 0 | D16: 0 | E16: 0 | F16: 0 | G16: 0 | H16: 0 | I16: 35 | J16: 0 | K16: =SUM(G16:J16) -> 35
A17: New Gas CC | B17: 0 | C17: 0 | D17: 0 | E17: 0 | F17: 1485 | G17: 0 | H17: 0 | I17: 31 | J17: 0 | K17: 31
A18: Hydrogen Turbine | B18: 9000.00001 | C18: 13106.92267 | D18: 0.1662471164 | E18: 0.1302728658 | F18: 1257 | G18: 13.73320074 | H18: 2 | I18: 33 | J18: =IF(C18>1,0.07*F18*$B18/C18,0) -> 60.41921667 | K18: =SUM(G18:J18) -> 109.1524174
A19: Coal | B19: 0 | C19: 0 | D19: 0 | E19: 0 | F19: 0 | G19: 0 | H19: 0 | I19: 0 | J19: =IF(C19>1,0.07*F19*$B19/C19,0) -> 0 | K19: =SUM(G19:J19) -> 0
A20: Steam Plants | B20: 0 | C20: 0 | D20: 0 | E20: 0 | G20: 0 | H20: 0 | I20: 35 | J20: =IF(C20>1,0.07*F20*$B20/C20,0) -> 0 | K20: =SUM(G20:J20) -> 35
A21: Existing Gas CT | B21: 0 | C21: 0 | D21: 0 | E21: 0 | F21: 0 | G21: 0 | H21: 0 | I21: 54 | J21: =IF(C21>1,0.07*F21*$B21/C21,0) -> 0 | K21: =SUM(G21:J21) -> 54
A22: New Gas CT | B22: 0 | C22: 0 | D22: 0 | E22: 0 | F22: 979 | G22: 0 | H22: 0 | I22: 49 | J22: =IF(C22>1,0.07*F22*$B22/C22,0) -> 0 | K22: =SUM(G22:J22) -> 49
A23: Total | B23: 9000.00101 | C23: 13106.92267 | D23: 0.1662470979 | E23: 0.1302728658 | G23: 13.73320074 | H23: 2 | I23: 33 | J23: =SUMPRODUCT(J14:J22,C14:C22)/(C23+C14) -> 60.41921667 | K23: =IF(C23>1,SUMPRODUCT(K14:K22,C14:C22)/C23,0) -> 109.1524174
A25: Total In-State Generation | B25: Capacity (MW) | C25: Generation (GWh/yr) | D25: Capacity Factor (%) | E25: % Total Load | G25: Fixed O&M ($/MWh) | H25: Var O&M ($/MWh) | I25: Fuel Cost ($/MWh) | J25: Capital Recovery ($/MWh) | K25: In-State Generation Cost ($/MWh)
A26: Total | B26: 25574.30101 | C26: 100611.3022 | D26: 0.4490956946 | E26: 1 | G26: 15.52458606 | H26: 1.103851142 | I26: 7.044522953 | J26: =(J11*C11+J23*C23)/C26 -> 36.41297114 | K26: =(K11*C11+SUMPRODUCT(K15:K20,C15:C20)+K14*C14)/C26 -> 60.0859313
A28: Regional Purchases | C28: Generation (GWh/yr) | E28: % Total Load | H28: GWh/yr | I28: % Total Load | J28: % of Grid Renewables
A29: Imports | C29: 0 | E29: 0 | G29: Curtailments | H29: 2901.227237 | I29: 0.02883599727 | J29: =H29/SUM(C5:C10) -> 0.2557024591
G30: Net Battery Load | H30: 0 | I30: 0
B31: Total Load (GWh/yr) | C31: 100611.3022
A32: * Battery charging included in solar and wind generation.

Sheet Summary Table
A1: Tables | B1: Costs ($/MWh)
A2: Georgia Power Existing Sources 2022 | B2: 34.12
A3: Scenarios 2043
A4: 1 - DATA ENTRY with George Power Company Capacity Expansion Plan | B4: ='1-DATA ENTRY'!$K$26 -> 52.87264788
A5: 2 - New Gas & Biomass ―>Baseload Nuclear | B5: ='2'!$K$26 -> 54.36906144
A6: 3 - New Gas & New Renewables ―> Baseload Nuclear | B6: ='3'!$K$26 -> 53.39665503
A7: 4 - All Gas & New Renewables ―> Flex Nuclear | B7: ='4'!$K$26 -> 97.47694015
A8: 5 - All Gas & New Renewables ―> Baseload & Flex Nuclear | B8: ='5'!$K$26 -> 92.86716844
A9: 6 - All Gas & New Renewables ―> Baseload Nuclear & H2 Turbines | B9: ='6'!$K$26 -> 60.0859313
